[Event "EYCC Girls-U16 2019"]
[Site "Bratislava"]
[Date "2019.08.08"]
[Round "7.12"]
[White "Donghvani, Nia"]
[Black "Kuzich, Aryna"]
[Result "1-0"]
[ECO "A34"]
[WhiteElo "1864"]
[BlackElo "1940"]
[Annotator "NA"]
[PlyCount "67"]
[EventDate "2019.08.02"]
[EventType "swiss"]
[EventCountry "SVK"]
[SourceTitle "playchess.com"]
[Source "ChessBase"]
[SourceQuality "1"]
[TimeControl "40/5400+30:1800+30"]

1. c4 {[%emt 0:00:00]} c5 {[%emt 0:01:28]} 2. Nc3 {[%emt 0:00:00]} Nf6 {[%emt 0:01:55]} 3. g3 {[%emt 0:00:22]} e6 {[%emt 0:07:59]} 4. Nf3 {[%emt 0:05:54]} Nc6 {[%emt 0:04:26]} 5. Bg2 {[%emt 0:01:03]} Be7 {[%emt 0:01:54]} 6. O-O {[%emt 0:01:08]} O-O {[%emt 0:00:24]} 7. a3 {[%emt 0:00:46]} a6 {[%emt 0:04:53]} 8. d4 {[%emt 0:10:00]} d5 {[%emt 0:02:23]} 9. cxd5 {[%emt 0:02:26]} exd5 {[%emt 0:00:31]} 10. dxc5 {[%emt 0:01:25]} Bxc5 {[%emt 0:05:18]} 11. b4 {[%emt 0:02:06]} Be7 {[%emt 0:10:19]} 12. Bb2 {[%emt 0:05:20]} Be6 {[%emt 0:06:19]} 13. e3 {[%emt 0:06:38]} Rc8 {[%emt 0:03:49]} 14. Rc1 {[%emt 0:09:05]} b5 {[%emt 0:07:01]} 15. Ne2 {[%emt 0:02:49]} Qb6 {[%emt 0:16:30]} 16. Nf4 {[%emt 0:06:05]} a5 {[%emt 0:02:57]} 17. Nxe6 {[%emt 0:04:49]} fxe6 {[%emt 0:00:05]} 18. Bh3 {[%emt 0:00:24]} Kh8 {[%emt 0:03:12]} 19. Bxe6 {[%emt 0:11:52]} Rc7 {[%emt 0:05:42]} 20. bxa5 {[%emt 0:08:12]} Nxa5 {[%emt 0:00:24]} 21. Rxc7 {[%emt 0:00:05]} Qxc7 {[%emt 0:00:10]} 22. Bxf6 {[%emt 0:06:12]} Bxf6 {[%emt 0:02:29]} 23. Qxd5 {[%emt 0:00:11]} Rb8 {[%emt 0:06:38]} 24. Ng5 {[%emt 0:03:31]} Bxg5 {[%emt 0:00:31]} 25. Qxg5 {[%emt 0:00:02]} Nc4 {[%emt 0:00:31]} 26. Rd1 {[%emt 0:08:02]} Ne5 {[%emt 0:02:45]} 27. Qf4 {[%emt 0:01:05]} Re8 {[%emt 0:00:30]} 28. Bh3 {[%emt 0:02:56]} Qc2 {[%emt 0:00:41]} 29. Rf1 {[%emt 0:01:06]} Nc4 {[%emt 0:01:51]} 30. Bd7 {[%emt 0:00:44]} Rd8 {[%emt 0:00:19]} 31. Qc7 {[%emt 0:00:30]} Rf8 {[%emt 0:00:31]} 32. Bxb5 {[%emt 0:00:34]} Nxe3 {[%emt 0:00:49]} 33. Qe7 {[%emt 0:00:35]} Rb8 {[%emt 0:00:32]} 34. Qxe3 {[%emt 0:00:05]} 1-0

[Event "EYCC Girls-U16 2019"]
[Site "Bratislava"]
[Date "2019.08.08"]
[Round "7.13"]
[White "Ozbek, Busra"]
[Black "Bulatova, Kamaliya"]
[Result "0-1"]
[ECO "A46"]
[WhiteElo "1866"]
[BlackElo "2157"]
[Annotator "NA"]
[PlyCount "68"]
[EventDate "2019.08.02"]
[EventType "swiss"]
[EventCountry "SVK"]
[SourceTitle "playchess.com"]
[Source "ChessBase"]
[SourceQuality "1"]
[TimeControl "40/5400+30:1800+30"]

1. d4 {[%emt 0:00:00]} Nf6 {[%emt 0:00:00]} 2. Nf3 {[%emt 0:00:00]} e6 {[%emt 0:00:00]} 3. e3 {[%emt 0:00:00]} b6 {[%emt 0:00:00]} 4. Bd3 {[%emt 0:00:14]} Bb7 {[%emt 0:00:01]} 5. b3 {[%emt 0:00:05]} d5 {[%emt 0:00:09]} 6. Bb2 {[%emt 0:00:17]} Bd6 {[%emt 0:00:06]} 7. O-O {[%emt 0:00:11]} O-O {[%emt 0:00:17]} 8. c4 {[%emt 0:00:16]} Nbd7 {[%emt 0:00:05]} 9. Nc3 {[%emt 0:00:10]} a6 {[%emt 0:00:15]} 10. Rc1 {[%emt 0:07:04]} Qe7 {[%emt 0:04:04]} 11. Re1 {[%emt 0:16:17]} Ne4 {[%emt 0:04:28]} 12. Qc2 {[%emt 0:06:14]} f5 {[%emt 0:02:03]} 13. Ne2 {[%emt 0:02:10]} Ndf6 {[%emt 0:21:12]} 14. h3 {[%emt 0:08:28]} g5 {[%emt 0:09:45]} 15. Ne5 {[%emt 0:19:57]} g4 {[%emt 0:08:56]} 16. Nf4 {[%emt 0:13:11]} gxh3 {[%emt 0:11:12]} 17. Nxh3 {[%emt 0:02:22]} Qg7 {[%emt 0:02:18]} 18. cxd5 {[%emt 0:03:52]} Nxd5 {[%emt 0:04:28]} 19. f3 {[%emt 0:02:35]} Nb4 {[%emt 0:02:10]} 20. Qd1 {[%emt 0:01:02]} Bxe5 {[%emt 0:02:51]} 21. dxe5 {[%emt 0:06:38]} Rad8 {[%emt 0:02:33]} 22. Nf4 {[%emt 0:07:49]} Nxd3 {[%emt 0:02:08]} 23. Nxd3 {[%emt 0:00:26]} Nc5 {[%emt 0:02:19]} 24. Rc3 {[%emt 0:00:49]} Nxd3 {[%emt 0:00:21]} 25. Rxd3 {[%emt 0:00:47]} Bxf3 {[%emt 0:01:45]} 26. Qxf3 {[%emt 0:00:03]} Rxd3 {[%emt 0:00:04]} 27. Bd4 {[%emt 0:00:46]} Rd2 {[%emt 0:01:02]} 28. b4 {[%emt 0:01:09]} Rc2 {[%emt 0:01:05]} 29. a4 {[%emt 0:00:52]} c5 {[%emt 0:00:38]} 30. bxc5 {[%emt 0:00:07]} bxc5 {[%emt 0:00:03]} 31. Qc6 {[%emt 0:00:40]} Kh8 {[%emt 0:01:02]} 32. Rb1 {[%emt 0:00:54]} Rg8 {[%emt 0:00:32]} 33. Bxc5 {[%emt 0:00:32]} Rxg2+ {[%emt 0:00:37]} 34. Kf1 {[%emt 0:00:01]} Rg1+ {[%emt 0:00:12]} 0-1

[Event "EYCC Girls-U16 2019"]
[Site "Bratislava"]
[Date "2019.08.08"]
[Round "7.14"]
[White "Srdanovic, Jovana"]
[Black "Esadze, Tamari"]
[Result "1-0"]
[ECO "D56"]
[WhiteElo "1975"]
[BlackElo "1997"]
[Annotator "NA"]
[PlyCount "155"]
[EventDate "2019.08.02"]
[EventType "swiss"]
[EventCountry "SVK"]
[SourceTitle "playchess.com"]
[Source "ChessBase"]
[SourceQuality "1"]
[TimeControl "40/5400+30:1800+30"]

1. d4 {[%emt 0:00:00]} d5 {[%emt 0:00:00]} 2. c4 {[%emt 0:00:11]} e6 {[%emt 0:00:00]} 3. Nc3 {[%emt 0:00:06]} Nf6 {[%emt 0:00:00]} 4. Bg5 {[%emt 0:00:19]} Be7 {[%emt 0:00:00]} 5. e3 {[%emt 0:00:04]} O-O {[%emt 0:00:11]} 6. Nf3 {[%emt 0:00:07]} h6 {[%emt 0:00:26]} 7. Bh4 {[%emt 0:00:06]} Nbd7 {[%emt 0:01:46]} 8. Rc1 {[%emt 0:00:26]} c6 {[%emt 0:01:51]} 9. Bd3 {[%emt 0:00:12]} dxc4 {[%emt 0:03:51]} 10. Bxc4 {[%emt 0:00:08]} Nd5 {[%emt 0:04:37]} 11. Bxe7 {[%emt 0:00:13]} Qxe7 {[%emt 0:00:02]} 12. O-O {[%emt 0:01:02]} N7f6 {[%emt 0:10:43]} 13. Bd3 {[%emt 0:05:01]} Rd8 {[%emt 0:04:51]} 14. Na4 {[%emt 0:08:28]} Nd7 {[%emt 0:07:39]} 15. Bb1 {[%emt 0:02:39]} f5 {[%emt 0:07:18]} 16. Nc5 {[%emt 0:02:03]} N5f6 {[%emt 0:07:31]} 17. Qb3 {[%emt 0:03:15]} Nxc5 {[%emt 0:02:27]} 18. Rxc5 {[%emt 0:01:15]} Rd5 {[%emt 0:06:56]} 19. Rcc1 {[%emt 0:01:33]} a5 {[%emt 0:03:14]} 20. a4 {[%emt 0:05:53]} Qe8 {[%emt 0:07:10]} 21. Qc2 {[%emt 0:03:22]} Ne4 {[%emt 0:03:19]} 22. Ba2 {[%emt 0:01:06]} Rd8 {[%emt 0:00:37]} 23. Ne5 {[%emt 0:00:46]} Kh8 {[%emt 0:03:16]} 24. Rfd1 {[%emt 0:01:30]} Nf6 {[%emt 0:00:38]} 25. Nd3 {[%emt 0:08:21]} Nd5 {[%emt 0:03:56]} 26. Bb3 {[%emt 0:03:50]} Qh5 {[%emt 0:02:35]} 27. Re1 {[%emt 0:00:48]} Rf8 {[%emt 0:01:40]} 28. Qd2 {[%emt 0:04:11]} Nf6 {[%emt 0:02:19]} 29. Bd1 {[%emt 0:02:14]} Qe8 {[%emt 0:00:49]} 30. f3 {[%emt 0:00:33]} Kg8 {[%emt 0:01:02]} 31. Ne5 {[%emt 0:01:03]} Nd7 {[%emt 0:01:51]} 32. Nc4 {[%emt 0:01:08]} Qd8 {[%emt 0:00:30]} 33. Bb3 {[%emt 0:00:39]} Nf6 {[%emt 0:04:07]} 34. Ne5 {[%emt 0:02:22]} Kh7 {[%emt 0:03:20]} 35. Qd3 {[%emt 0:02:49]} Nd7 {[%emt 0:01:12]} 36. Nxd7 {[%emt 0:00:46]} Bxd7 {[%emt 0:00:40]} 37. e4 {[%emt 0:00:33]} Qf6 {[%emt 0:02:01]} 38. Rc2 {[%emt 0:02:16]} Rfe8 {[%emt 0:01:07]} 39. Rc5 {[%emt 0:01:03]} b6 {[%emt 0:00:34]} 40. Rc2 {[%emt 0:00:00]} Rad8 {[%emt 0:00:00]} 41. Qc3 {[%emt 0:03:09]} Re7 {[%emt 0:12:00]} 42. Rce2 {[%emt 0:05:36]} Rde8 {[%emt 0:03:15]} 43. Qd3 {[%emt 0:03:01]} g6 {[%emt 0:03:31]} 44. Qe3 {[%emt 0:02:35]} f4 {[%emt 0:02:45]} 45. e5 {[%emt 0:01:59]} Qf7 {[%emt 0:03:06]} 46. Qe4 {[%emt 0:00:40]} Rf8 {[%emt 0:03:33]} 47. Rc1 {[%emt 0:01:50]} Ree8 {[%emt 0:00:23]} 48. Qb1 {[%emt 0:00:37]} Rc8 {[%emt 0:01:02]} 49. Rd2 {[%emt 0:00:36]} Rfd8 {[%emt 0:02:55]} 50. Qe4 {[%emt 0:02:07]} Be8 {[%emt 0:01:11]} 51. Rcd1 {[%emt 0:02:07]} Kg7 {[%emt 0:00:40]} 52. g3 {[%emt 0:00:17]} fxg3 {[%emt 0:00:35]} 53. hxg3 {[%emt 0:00:07]} Bd7 {[%emt 0:00:28]} 54. Kg2 {[%emt 0:01:33]} Rh8 {[%emt 0:01:12]} 55. Rh1 {[%emt 0:01:22]} Rcf8 {[%emt 0:00:41]} 56. Bc2 {[%emt 0:00:55]} Bc8 {[%emt 0:00:53]} 57. Qe3 {[%emt 0:00:39]} Bb7 {[%emt 0:00:54]} 58. Be4 {[%emt 0:00:15]} Rc8 {[%emt 0:00:24]} 59. Rc2 {[%emt 0:00:45]} Qd7 {[%emt 0:00:39]} 60. Qb3 {[%emt 0:01:32]} b5 {[%emt 0:01:18]} 61. Qd3 {[%emt 0:02:54]} Rhd8 {[%emt 0:01:37]} 62. Qd2 {[%emt 0:03:22]} g5 {[%emt 0:00:14]} 63. Rd1 {[%emt 0:02:44]} b4 {[%emt 0:00:41]} 64. Rc5 {[%emt 0:00:07]} Ra8 {[%emt 0:00:22]} 65. Kf2 {[%emt 0:00:16]} Qe8 {[%emt 0:00:51]} 66. Rh1 {[%emt 0:00:11]} Qe7 {[%emt 0:00:33]} 67. Rhc1 {[%emt 0:00:37]} Rd7 {[%emt 0:00:45]} 68. Bxc6 {[%emt 0:01:20]} Bxc6 {[%emt 0:00:04]} 69. Rxc6 {[%emt 0:00:05]} Rad8 {[%emt 0:00:04]} 70. R1c4 {[%emt 0:00:08]} Qf7 {[%emt 0:00:29]} 71. Qd3 {[%emt 0:02:31]} Qh5 {[%emt 0:00:24]} 72. Kg2 {[%emt 0:01:17]} g4 {[%emt 0:00:10]} 73. f4 {[%emt 0:01:08]} Re8 {[%emt 0:02:10]} 74. Kg1 {[%emt 0:01:29]} Qh3 {[%emt 0:00:19]} 75. Rc2 {[%emt 0:00:10]} Red8 {[%emt 0:00:41]} 76. Rxe6 {[%emt 0:01:17]} Rxd4 {[%emt 0:00:18]} 77. Rc7+ {[%emt 0:00:06]} Kf8 {[%emt 0:00:30]} 78. Qf5+ {[%emt 0:00:06]} 1-0

[Event "EYCC Girls-U16 2019"]
[Site "Bratislava"]
[Date "2019.08.08"]
[Round "7.15"]
[White "Kvendseth, Thyra"]
[Black "Pecorini, Angie"]
[Result "1/2-1/2"]
[ECO "E62"]
[WhiteElo "1977"]
[BlackElo "1781"]
[Annotator "NA"]
[PlyCount "80"]
[EventDate "2019.08.02"]
[EventType "swiss"]
[EventCountry "SVK"]
[SourceTitle "playchess.com"]
[Source "ChessBase"]
[SourceQuality "1"]
[TimeControl "40/5400+30:1800+30"]

1. d4 {[%emt 0:00:00]} Nf6 {[%emt 0:00:00]} 2. Nf3 {[%emt 0:00:11]} g6 {[%emt 0:00:00]} 3. g3 {[%emt 0:00:08]} Bg7 {[%emt 0:00:00]} 4. Bg2 {[%emt 0:00:04]} O-O {[%emt 0:00:06]} 5. c4 {[%emt 0:01:35]} d6 {[%emt 0:00:25]} 6. O-O {[%emt 0:00:08]} c6 {[%emt 0:00:04]} 7. Nc3 {[%emt 0:01:35]} Qa5 {[%emt 0:00:06]} 8. Qd2 {[%emt 0:13:41]} e5 {[%emt 0:12:58]} 9. e4 {[%emt 0:06:53]} Be6 {[%emt 0:00:51]} 10. d5 {[%emt 0:04:31]} cxd5 {[%emt 0:00:11]} 11. cxd5 {[%emt 0:05:23]} Bd7 {[%emt 0:00:08]} 12. Rb1 {[%emt 0:06:45]} Rc8 {[%emt 0:10:18]} 13. b4 {[%emt 0:04:11]} Qc7 {[%emt 0:00:08]} 14. Bb2 {[%emt 0:00:54]} Qc4 {[%emt 0:15:48]} 15. a3 {[%emt 0:00:19]} Nxe4 {[%emt 0:18:54]} 16. Nxe4 {[%emt 0:01:51]} Qxe4 {[%emt 0:00:16]} 17. Nxe5 {[%emt 0:02:27]} Qc2 {[%emt 0:02:00]} 18. Nf3 {[%emt 0:02:51]} Qxd2 {[%emt 0:12:05]} 19. Nxd2 {[%emt 0:00:15]} Bb5 {[%emt 0:00:05]} 20. Rfc1 {[%emt 0:06:43]} Rxc1+ {[%emt 0:00:10]} 21. Bxc1 {[%emt 0:00:13]} Nd7 {[%emt 0:02:21]} 22. Bf1 {[%emt 0:03:20]} Ba4 {[%emt 0:01:20]} 23. Nb3 {[%emt 0:00:28]} Nb6 {[%emt 0:00:45]} 24. Bg2 {[%emt 0:05:28]} Nc4 {[%emt 0:00:18]} 25. Na5 {[%emt 0:11:50]} Bc2 {[%emt 0:11:53]} 26. Nxc4 {[%emt 0:00:06]} Re8 {[%emt 0:02:27]} 27. Be3 {[%emt 0:00:47]} Bxb1 {[%emt 0:00:06]} 28. Nxd6 {[%emt 0:00:06]} Rb8 {[%emt 0:05:29]} 29. Bf4 {[%emt 0:02:17]} f6 {[%emt 0:00:56]} 30. Bh3 {[%emt 0:01:34]} g5 {[%emt 0:01:52]} 31. Be6+ {[%emt 0:01:55]} Kf8 {[%emt 0:00:05]} 32. Be3 {[%emt 0:00:06]} b6 {[%emt 0:00:27]} 33. Nb5 {[%emt 0:02:24]} a6 {[%emt 0:01:24]} 34. Nc7 {[%emt 0:02:10]} Bd3 {[%emt 0:01:35]} 35. d6 {[%emt 0:02:50]} h6 {[%emt 0:00:56]} 36. a4 {[%emt 0:02:55]} f5 {[%emt 0:00:23]} 37. a5 {[%emt 0:00:49]} Be5 {[%emt 0:00:23]} 38. axb6 {[%emt 0:04:27]} Bxd6 {[%emt 0:00:08]} 39. Bc5 {[%emt 0:00:19]} Ke7 {[%emt 0:00:14]} 40. f3 {[%emt 0:00:00]} Rxb6 {[%emt 0:00:00]} 1/2-1/2

[Event "EYCC Girls-U16 2019"]
[Site "Bratislava"]
[Date "2019.08.08"]
[Round "7.16"]
[White "Kaygisiz, Ilayda"]
[Black "Khachatryan, Veronika"]
[Result "0-1"]
[ECO "B31"]
[WhiteElo "1775"]
[BlackElo "1870"]
[Annotator "NA"]
[PlyCount "76"]
[EventDate "2019.08.02"]
[EventType "swiss"]
[EventCountry "SVK"]
[SourceTitle "playchess.com"]
[Source "ChessBase"]
[SourceQuality "1"]
[TimeControl "40/5400+30:1800+30"]

1. e4 {[%emt 0:00:00]} c5 {[%emt 0:00:00]} 2. Nf3 {[%emt 0:00:00]} Nc6 {[%emt 0:00:00]} 3. Bb5 {[%emt 0:00:00]} g6 {[%emt 0:00:00]} 4. Bxc6 {[%emt 0:00:00]} dxc6 {[%emt 0:00:00]} 5. d3 {[%emt 0:00:00]} Bg7 {[%emt 0:00:02]} 6. h3 {[%emt 0:00:00]} Nf6 {[%emt 0:01:44]} 7. Nc3 {[%emt 0:00:22]} Nd7 {[%emt 0:01:29]} 8. Be3 {[%emt 0:00:25]} e5 {[%emt 0:00:12]} 9. Qd2 {[%emt 0:00:03]} h6 10. O-O {[%emt 0:01:39]} Qe7 {[%emt 0:04:07]} 11. Nh2 {[%emt 0:01:47]} Nf8 {[%emt 0:01:11]} 12. Ne2 {[%emt 0:04:33]} g5 {[%emt 0:21:55]} 13. Ng3 {[%emt 0:13:56]} Ng6 {[%emt 0:07:36]} 14. Qc3 {[%emt 0:01:19]} Bf8 {[%emt 0:01:08]} 15. Nf5 {[%emt 0:07:49]} Bxf5 {[%emt 0:02:26]} 16. exf5 {[%emt 0:00:01]} Nf4 {[%emt 0:10:20]} 17. Bxf4 gxf4 {[%emt 0:00:13]} 18. f6 {[%emt 0:08:44]} Qe6 {[%emt 0:08:41]} 19. Rfe1 {[%emt 0:16:14]} Bd6 {[%emt 0:00:14]} 20. Ng4 {[%emt 0:00:27]} O-O-O {[%emt 0:00:51]} 21. Nxe5 {[%emt 0:07:02]} Rhg8 {[%emt 0:01:29]} 22. Ng4 {[%emt 0:08:41]} Qd5 {[%emt 0:00:22]} 23. Qc4 {[%emt 0:01:40]} Qg5 {[%emt 0:20:31]} 24. Qe4 {[%emt 0:00:19]} h5 {[%emt 0:00:19]} 25. Nh2 {[%emt 0:00:05]} Rg6 {[%emt 0:01:52]} 26. Re2 {[%emt 0:03:33]} Rdg8 {[%emt 0:00:11]} 27. f3 {[%emt 0:00:48]} Rxf6 {[%emt 0:00:20]} 28. Qh7 {[%emt 0:03:21]} Rg7 {[%emt 0:07:45]} 29. Qh8+ {[%emt 0:00:09]} Kc7 {[%emt 0:00:04]} 30. Rae1 {[%emt 0:05:06]} Re6 {[%emt 0:01:49]} 31. Nf1 {[%emt 0:00:51]} Qg6 {[%emt 0:04:48]} 32. Nd2 {[%emt 0:01:59]} Be5 {[%emt 0:01:57]} 33. Qa8 {[%emt 0:01:28]} Bd4+ {[%emt 0:00:04]} 34. Kh1 {[%emt 0:00:39]} Bf2 {[%emt 0:00:42]} 35. g4 {[%emt 0:04:14]} Bxe1 {[%emt 0:00:13]} 36. Nc4 {[%emt 0:00:26]} Rxe2 {[%emt 0:00:31]} 37. Qxa7 {[%emt 0:00:08]} hxg4 {[%emt 0:02:19]} 38. Nb6 {[%emt 0:01:18]} Rg8 {[%emt 0:00:32]} 0-1

[Event "EYCC Girls-U16 2019"]
[Site "Bratislava"]
[Date "2019.08.08"]
[Round "7.17"]
[White "Warnaar, Alisha"]
[Black "Koksa, Jelena"]
[Result "1/2-1/2"]
[ECO "C64"]
[WhiteElo "1886"]
[BlackElo "1781"]
[Annotator "NA"]
[PlyCount "77"]
[EventDate "2019.08.02"]
[EventType "swiss"]
[EventCountry "SVK"]
[SourceTitle "playchess.com"]
[Source "ChessBase"]
[SourceQuality "1"]
[TimeControl "40/5400+30:1800+30"]

1. e4 {[%emt 0:00:00]} e5 {[%emt 0:00:00]} 2. Nf3 {[%emt 0:00:00]} Nc6 {[%emt 0:00:00]} 3. Bb5 {[%emt 0:00:00]} Bc5 {[%emt 0:00:00]} 4. c3 {[%emt 0:00:11]} Nf6 {[%emt 0:00:09]} 5. d4 {[%emt 0:00:06]} exd4 {[%emt 0:00:14]} 6. e5 {[%emt 0:00:23]} Nd5 {[%emt 0:08:32]} 7. O-O {[%emt 0:04:58]} O-O {[%emt 0:00:35]} 8. cxd4 {[%emt 0:02:09]} Be7 {[%emt 0:01:13]} 9. Qb3 {[%emt 0:10:15]} a6 {[%emt 0:05:14]} 10. Qxd5 {[%emt 0:15:48]} Nb4 {[%emt 0:06:52]} 11. Qb3 {[%emt 0:01:41]} axb5 {[%emt 0:00:22]} 12. Bd2 {[%emt 0:00:20]} Na6 {[%emt 0:02:20]} 13. Qxb5 {[%emt 0:00:38]} d6 {[%emt 0:00:51]} 14. exd6 {[%emt 0:02:05]} Qxd6 {[%emt 0:06:01]} 15. h3 {[%emt 0:03:10]} c6 {[%emt 0:02:00]} 16. Qe5 {[%emt 0:04:42]} f6 {[%emt 0:03:23]} 17. Qxd6 {[%emt 0:01:16]} Bxd6 {[%emt 0:00:06]} 18. Nc3 {[%emt 0:03:11]} Bf5 {[%emt 0:01:35]} 19. a3 {[%emt 0:01:01]} Nc7 {[%emt 0:01:55]} 20. Rfe1 {[%emt 0:02:16]} Rfe8 {[%emt 0:00:24]} 21. Rxe8+ {[%emt 0:07:25]} Rxe8 {[%emt 0:01:08]} 22. Re1 {[%emt 0:06:33]} Rxe1+ {[%emt 0:02:02]} 23. Nxe1 {[%emt 0:05:46]} Kf7 {[%emt 0:01:04]} 24. Kf1 {[%emt 0:00:39]} Ke6 {[%emt 0:00:21]} 25. Ke2 {[%emt 0:00:38]} Nd5 {[%emt 0:00:27]} 26. Nd3 {[%emt 0:00:25]} Nxc3+ {[%emt 0:06:28]} 27. Bxc3 {[%emt 0:00:19]} Kd5 {[%emt 0:00:24]} 28. g4 {[%emt 0:09:54]} Bg6 {[%emt 0:03:41]} 29. Ne1 {[%emt 0:06:11]} Kc4 {[%emt 0:03:41]} 30. Nf3 {[%emt 0:00:52]} Kb3 {[%emt 0:09:17]} 31. Nd2+ {[%emt 0:00:26]} Kc2 {[%emt 0:01:58]} 32. Ke3 {[%emt 0:04:10]} b5 {[%emt 0:06:01]} 33. Ne4 {[%emt 0:04:47]} Bxe4 {[%emt 0:06:55]} 34. Kxe4 {[%emt 0:00:06]} Bxa3 {[%emt 0:00:10]} 35. bxa3 {[%emt 0:00:12]} Kxc3 {[%emt 0:00:05]} 36. d5 {[%emt 0:00:08]} cxd5+ {[%emt 0:00:08]} 37. Kxd5 {[%emt 0:00:06]} Kb3 {[%emt 0:00:49]} 38. Kc5 Ka4 {[%emt 0:00:08]} 39. Kc6 {[%emt 0:00:50]} 1/2-1/2

[Event "EYCC Girls-U16 2019"]
[Site "Bratislava"]
[Date "2019.08.08"]
[Round "7.18"]
[White "Dubovyk, Anastasiia"]
[Black "Diez, Ambre"]
[Result "1-0"]
[ECO "C88"]
[WhiteElo "1824"]
[BlackElo "1908"]
[Annotator "NA"]
[PlyCount "83"]
[EventDate "2019.08.02"]
[EventType "swiss"]
[EventCountry "SVK"]
[SourceTitle "playchess.com"]
[Source "ChessBase"]
[SourceQuality "1"]
[TimeControl "40/5400+30:1800+30"]

1. e4 {[%emt 0:00:00]} e5 {[%emt 0:00:00]} 2. Nf3 {[%emt 0:00:00]} Nc6 {[%emt 0:00:00]} 3. Bb5 {[%emt 0:00:00]} a6 {[%emt 0:00:00]} 4. Ba4 {[%emt 0:00:00]} Nf6 {[%emt 0:00:02]} 5. O-O {[%emt 0:00:05]} Be7 {[%emt 0:00:05]} 6. Re1 {[%emt 0:00:06]} b5 {[%emt 0:00:08]} 7. Bb3 {[%emt 0:00:04]} O-O {[%emt 0:00:09]} 8. h3 {[%emt 0:00:09]} Bb7 {[%emt 0:00:08]} 9. d3 {[%emt 0:01:06]} d6 {[%emt 0:00:16]} 10. c3 {[%emt 0:01:04]} Na5 {[%emt 0:00:19]} 11. Bc2 {[%emt 0:00:16]} c5 {[%emt 0:00:15]} 12. Nbd2 {[%emt 0:02:01]} Re8 {[%emt 0:00:27]} 13. Nf1 {[%emt 0:02:30]} h6 {[%emt 0:00:28]} 14. Ng3 {[%emt 0:01:38]} Bf8 {[%emt 0:01:30]} 15. Nh2 {[%emt 0:12:40]} d5 {[%emt 0:07:36]} 16. Qf3 {[%emt 0:06:15]} dxe4 {[%emt 0:08:00]} 17. dxe4 {[%emt 0:00:32]} Nc4 {[%emt 0:01:43]} 18. Nhf1 {[%emt 0:12:53]} g6 {[%emt 0:09:02]} 19. b3 {[%emt 0:10:27]} Nb6 {[%emt 0:06:30]} 20. h4 {[%emt 0:06:22]} h5 {[%emt 0:02:00]} 21. Bg5 {[%emt 0:01:55]} Bg7 {[%emt 0:00:19]} 22. Ne3 {[%emt 0:03:31]} Qd6 {[%emt 0:04:06]} 23. Ngf5 gxf5 {[%emt 0:05:58]} 24. Nxf5 {[%emt 0:18:06]} Qe6 {[%emt 0:01:27]} 25. Qg3 {[%emt 0:02:13]} Nh7 {[%emt 0:12:39]} 26. Bh6 {[%emt 0:03:01]} Qg6 {[%emt 0:00:11]} 27. Nxg7 {[%emt 0:01:41]} Qxg3 {[%emt 0:01:44]} 28. fxg3 {[%emt 0:00:13]} Red8 {[%emt 0:00:43]} 29. Nxh5 {[%emt 0:02:25]} Nd7 {[%emt 0:07:42]} 30. Rf1 {[%emt 0:02:05]} f6 {[%emt 0:01:33]} 31. Rf5 {[%emt 0:02:50]} Rac8 {[%emt 0:01:55]} 32. g4 {[%emt 0:01:09]} Kf7 {[%emt 0:02:34]} 33. Be3 {[%emt 0:01:31]} Ke7 {[%emt 0:02:24]} 34. Raf1 {[%emt 0:01:15]} Rf8 {[%emt 0:02:13]} 35. Bh6 {[%emt 0:01:02]} Rg8 {[%emt 0:01:06]} 36. g5 {[%emt 0:01:06]} Rc6 {[%emt 0:01:00]} 37. gxf6+ {[%emt 0:01:38]} Nhxf6 {[%emt 0:02:39]} 38. Nxf6 {[%emt 0:01:11]} Nxf6 {[%emt 0:01:01]} 39. Bg5 {[%emt 0:00:40]} Rf8 {[%emt 0:01:06]} 40. h5 {[%emt 0:00:00]} Bc8 {[%emt 0:00:00]} 41. R5f2 {[%emt 0:02:10]} Bd7 {[%emt 0:04:17]} 42. h6 {[%emt 0:00:25]} 1-0

[Event "EYCC Girls-U16 2019"]
[Site "Bratislava"]
[Date "2019.08.08"]
[Round "7.19"]
[White "Bardorz, Jana"]
[Black "De Zoeten, Cato"]
[Result "1-0"]
[ECO "B93"]
[WhiteElo "1883"]
[BlackElo "1684"]
[Annotator "NA"]
[PlyCount "119"]
[EventDate "2019.08.02"]
[EventType "swiss"]
[EventCountry "SVK"]
[SourceTitle "playchess.com"]
[Source "ChessBase"]
[SourceQuality "1"]
[TimeControl "40/5400+30:1800+30"]

1. e4 {[%emt 0:00:00]} c5 {[%emt 0:00:00]} 2. Nf3 {[%emt 0:00:00]} d6 {[%emt 0:00:00]} 3. d4 {[%emt 0:00:00]} cxd4 {[%emt 0:00:00]} 4. Nxd4 {[%emt 0:00:00]} Nf6 {[%emt 0:00:08]} 5. Nc3 {[%emt 0:00:00]} a6 {[%emt 0:00:36]} 6. f4 {[%emt 0:00:27]} e5 {[%emt 0:02:47]} 7. Nf3 {[%emt 0:00:36]} Nbd7 {[%emt 0:03:20]} 8. a4 {[%emt 0:01:48]} Be7 {[%emt 0:04:34]} 9. Bc4 {[%emt 0:01:04]} Qc7 {[%emt 0:05:49]} 10. Bb3 {[%emt 0:07:03]} O-O {[%emt 0:03:23]} 11. O-O {[%emt 0:03:38]} Re8 {[%emt 0:08:43]} 12. Ng5 {[%emt 0:07:34]} Rf8 {[%emt 0:01:53]} 13. Qf3 {[%emt 0:08:34]} exf4 {[%emt 0:05:59]} 14. Bxf4 {[%emt 0:05:47]} Ne5 {[%emt 0:06:52]} 15. Bxe5 {[%emt 0:04:34]} dxe5 {[%emt 0:00:36]} 16. Kh1 {[%emt 0:01:55]} h6 {[%emt 0:02:36]} 17. Nxf7 {[%emt 0:05:28]} Rxf7 {[%emt 0:05:04]} 18. Nd5 {[%emt 0:02:44]} Qc5 {[%emt 0:06:29]} 19. Nxf6+ {[%emt 0:07:58]} Bxf6 {[%emt 0:00:34]} 20. Rad1 {[%emt 0:05:49]} Qe7 {[%emt 0:04:30]} 21. Bxf7+ {[%emt 0:01:02]} Kxf7 {[%emt 0:01:00]} 22. Qh5+ {[%emt 0:03:28]} Kg8 {[%emt 0:02:16]} 23. Rd3 {[%emt 0:01:40]} Be6 {[%emt 0:10:03]} 24. Rg3 {[%emt 0:02:23]} Kh7 {[%emt 0:01:49]} 25. Qg6+ {[%emt 0:02:48]} Kh8 {[%emt 0:00:29]} 26. Rgf3 {[%emt 0:01:06]} Rf8 {[%emt 0:02:52]} 27. Qg3 {[%emt 0:04:29]} Bd7 {[%emt 0:02:30]} 28. b3 {[%emt 0:03:03]} Bc6 {[%emt 0:00:38]} 29. Qe1 {[%emt 0:01:10]} Rd8 {[%emt 0:02:02]} 30. Rd3 {[%emt 0:02:53]} Rd4 {[%emt 0:03:20]} 31. Rxd4 {[%emt 0:05:14]} exd4 {[%emt 0:00:09]} 32. Rf4 {[%emt 0:01:56]} Bg5 {[%emt 0:00:52]} 33. Rf1 {[%emt 0:03:15]} Qxe4 {[%emt 0:03:04]} 34. Rf8+ {[%emt 0:02:13]} Kh7 {[%emt 0:00:08]} 35. Qf2 {[%emt 0:00:31]} Bf6 {[%emt 0:03:01]} 36. h3 {[%emt 0:01:40]} Qe7 {[%emt 0:01:47]} 37. Qf5+ {[%emt 0:01:15]} g6 {[%emt 0:00:56]} 38. Qxf6 {[%emt 0:00:12]} Qxf6 {[%emt 0:00:42]} 39. Rxf6 {[%emt 0:00:05]} Be4 {[%emt 0:01:23]} 40. Rf2 {[%emt 0:00:00]} h5 {[%emt 0:00:00]} 41. a5 {[%emt 0:05:53]} Kh6 {[%emt 0:12:24]} 42. h4 {[%emt 0:03:41]} Kg7 {[%emt 0:02:02]} 43. Kg1 {[%emt 0:02:10]} d3 {[%emt 0:03:35]} 44. cxd3 {[%emt 0:00:41]} Bxd3 {[%emt 0:00:07]} 45. Rf4 {[%emt 0:02:20]} g5 {[%emt 0:01:45]} 46. hxg5 {[%emt 0:04:08]} Kg6 {[%emt 0:00:20]} 47. Rd4 {[%emt 0:02:22]} Bf5 {[%emt 0:01:17]} 48. Rb4 {[%emt 0:01:16]} Bc8 {[%emt 0:01:47]} 49. Kf2 {[%emt 0:00:47]} Kxg5 {[%emt 0:00:08]} 50. g3 {[%emt 0:00:12]} Kf6 {[%emt 0:01:24]} 51. Ke3 {[%emt 0:00:36]} Ke5 {[%emt 0:01:48]} 52. Rb6 {[%emt 0:01:02]} Kf5 {[%emt 0:00:57]} 53. b4 {[%emt 0:02:17]} Kg5 {[%emt 0:00:53]} 54. Rd6 {[%emt 0:02:26]} h4 {[%emt 0:01:04]} 55. gxh4+ {[%emt 0:00:17]} Kxh4 {[%emt 0:00:09]} 56. Kd4 {[%emt 0:00:14]} Kg5 {[%emt 0:00:26]} 57. Kc5 {[%emt 0:00:05]} Bh3 {[%emt 0:00:38]} 58. Kb6 {[%emt 0:00:09]} Bg2 {[%emt 0:00:08]} 59. Rd7 {[%emt 0:00:12]} Kf5 {[%emt 0:01:22]} 60. Rxb7 {[%emt 0:00:12]} 1-0